bitfinex/quotes_BTCUSD_20241211
["timestamp","ask_amount","ask_price","bid_price","bid_amount"]
[1733921482419,0.203456,98301.0,98300.0,0.0001718]
[1733921482624,0.35819718,98301.0,98300.0,0.0001718]
[1733921482828,0.33932865,98301.0,98300.0,0.0001718]
[1733921483355,0.35819718,98301.0,98300.0,0.0001718]
[1733921483802,0.3582014,98301.0,98300.0,0.00072798]
[1733921485279,0.5112014,98301.0,98300.0,0.00072798]
[1733921485455,0.90497726,98301.0,98300.0,0.00072798]
[1733921485632,0.78517366,98301.0,98300.0,0.00072798]
[1733921485835,0.79417366,98301.0,98300.0,0.00072798]
[1733921486035,0.89927695,98301.0,98300.0,0.00072798]
[1733921486441,0.89027695,98301.0,98300.0,0.00072798]
[1733921486647,0.89029429,98301.0,98300.0,0.00072798]
[1733921486849,0.89929429,98301.0,98300.0,0.00072798]
[1733921487593,0.90648204,98301.0,98300.0,0.00072798]
[1733921487794,0.90648204,98301.0,98276.0,0.01052307]
[1733921487795,0.203506,98277.0,98276.0,0.01052307]
[1733921488001,0.203506,98277.0,98268.0,0.1079154]
[1733921488002,0.023,98276.0,98268.0,0.1079154]
[1733921488193,0.20351,98275.0,98268.0,0.1079154]
[1733921488398,0.20351,98275.0,98269.0,0.00863821]
[1733921488876,0.203489,98285.0,98269.0,0.00863821]
[1733921489114,0.002,98277.0,98269.0,0.00863821]
[1733921489310,0.00756004,98277.0,98269.0,0.00863821]
[1733921489539,0.203508,98276.0,98269.0,0.00863821]
[1733921489730,0.203512,98274.0,98269.0,0.00863821]
[1733921490116,0.00756412,98273.0,98269.0,0.00863821]
[1733921490299,0.023,98277.0,98269.0,0.00863821]
[1733921490499,0.203508,98276.0,98269.0,0.00863821]
[1733921490705,0.203508,98276.0,98268.0,0.1079154]
[1733921490906,0.203508,98276.0,98270.0,0.00863683]
[1733921491125,0.203508,98276.0,98268.0,0.1079154]
[1733921491327,0.00756791,98275.0,98271.0,0.00863544]
[1733921491575,0.023,98277.0,98268.0,0.1079154]
[1733921491576,0.00756799,98274.0,98268.0,0.1079154]
[1733921491774,0.002,98276.0,98272.0,0.00863406]
[1733921491980,0.002,98276.0,98268.0,0.1079154]
[1733921491981,0.00756785,98275.0,98268.0,0.1079154]
[1733921492177,0.00756785,98274.0,98273.0,0.00863267]
[1733921492379,0.00756785,98274.0,98268.0,0.1079154]
[1733921492558,0.01892534,98276.0,98273.0,0.00863267]
[1733921492759,0.21108003,98275.0,98268.0,0.1079154]
[1733921492983,0.20351,98275.0,98274.0,0.00863129]
[1733921493318,0.20351,98275.0,98268.0,0.1079154]
[1733921493319,0.23000687,98275.0,98268.0,0.1079154]
[1733921493523,0.023,98277.0,98268.0,0.1079154]
[1733921493524,0.023,98273.0,98268.0,0.1079154]
[1733921493747,0.023,98271.0,98268.0,0.0499]
[1733921493928,0.226522,98269.0,98268.0,0.0499]
[1733921494079,0.25301781,98269.0,98268.0,0.0499]
[1733921494869,0.25301781,98269.0,98268.0,0.05000075]
[1733921495773,0.25601781,98269.0,98268.0,0.05000075]
[1733921496634,0.25601659,98269.0,98268.0,0.05000075]
[1733921496806,0.26736993,98269.0,98268.0,0.05000075]
[1733921497025,0.25601299,98269.0,98268.0,0.05000075]
[1733921497889,0.00157209,98269.0,98268.0,0.05000075]
[1733921498092,0.203496,98282.0,98268.0,0.05000075]
[1733921498093,0.04238177,98281.0,98269.0,0.0757]
[1733921498298,0.203452,98303.0,98302.0,0.11996415]
[1733921498442,0.40542347,98303.0,98302.0,7.56498954]
[1733921498859,0.25062589,98303.0,98302.0,11.26388374]
[1733921499060,0.30877724,98303.0,98302.0,11.26388374]
[1733921499467,0.30008169,98303.0,98302.0,11.26388374]
[1733921499675,0.3006368,98303.0,98302.0,11.26388374]
[1733921499876,0.2916368,98303.0,98302.0,11.26392542]
[1733921500158,0.24616556,98303.0,98302.0,11.15989755]
[1733921500781,0.22821297,98303.0,98302.0,11.15989755]
[1733921500993,0.22821297,98303.0,98302.0,11.16061669]
[1733921501192,0.082,98308.0,98302.0,11.16061648]
[1733921501397,0.204452,98303.0,98302.0,3.68953166]
[1733921501598,0.204452,98303.0,98302.0,11.15986524]
[1733921501918,0.0355348,98312.0,98302.0,11.15986524]
[1733921502120,0.203447,98306.0,98303.0,8.47271959]
[1733921502345,0.203447,98306.0,98304.0,8.48865502]
[1733921502579,0.203447,98306.0,98305.0,11.17524641]
[1733921503248,0.203447,98306.0,98305.0,11.18463192]
[1733921503418,0.210447,98306.0,98305.0,11.18463192]
[1733921503624,0.203447,98306.0,98305.0,11.18463192]
[1733921504003,0.210367,98306.0,98305.0,11.18563192]
[1733921504210,0.007,98306.0,98305.0,11.16969564]
[1733921504412,0.007,98306.0,98305.0,11.18563106]
[1733921504960,0.007,98306.0,98305.0,11.16969564]
[1733921505183,8.59e-05,98320.0,98305.0,10.36371849]
[1733921505391,0.203419,98319.0,98306.0,6.78541029]
[1733921505649,0.203439,98310.0,98307.0,4.77046738]
[1733921505870,0.203421,98318.0,98308.0,6.45954578]
[1733921506104,0.06310946,98325.0,98315.0,0.8077743]
[1733921506308,0.0478,98334.0,98316.0,4.77046738]
[1733921506517,0.0478,98334.0,98317.0,6.79536875]
[1733921506722,0.05806018,98334.0,98318.0,4.78042584]
[1733921506851,0.05806018,98334.0,98319.0,7.48295014]
[1733921506852,0.203408,98325.0,98319.0,7.48295014]
[1733921507057,0.01026018,98334.0,98320.0,8.4904216]
[1733921507369,0.15,98326.0,98321.0,11.16107838]
[1733921507572,0.15,98326.0,98322.0,6.45954493]
[1733921507772,0.203407,98325.0,98323.0,9.13617701]
[1733921507972,0.203367,98325.0,98324.0,8.46452938]
[1733921508333,0.203287,98325.0,98324.0,11.1606085]
[1733921509273,0.003,98325.0,98324.0,11.1606085]
[1733921509473,0.206407,98325.0,98324.0,11.16124148]
[1733921509672,0.209407,98325.0,98324.0,11.16124148]
[1733921510046,0.20339,98333.0,98324.0,11.16224148]
[1733921510410,0.203404,98326.0,98325.0,11.1517529]
[1733921510812,0.203404,98326.0,98325.0,11.16136522]
[1733921511681,0.203404,98326.0,98325.0,11.16236522]
[1733921511882,0.15,98328.0,98325.0,11.16236522]
[1733921512104,0.023,98339.0,98326.0,8.46516236]
[1733921512281,0.04733019,98335.0,98327.0,8.46516236]
[1733921512459,0.203388,98334.0,98328.0,6.45021945]
[1733921512661,0.203392,98332.0,98329.0,8.46516236]
[1733921512889,0.06435353,98331.0,98330.0,8.46516236]
[1733921513096,0.06435353,98331.0,98330.0,8.47476776]
[1733921513097,0.06415354,98331.0,98330.0,8.47476776]
[1733921514138,0.10528524,98331.0,98330.0,6.46082485]
[1733921515116,0.04341353,98331.0,98330.0,6.46082485]
[1733921515347,0.01170754,98331.0,98330.0,6.46082485]
[1733921516137,0.01166754,98331.0,98330.0,6.46082485]
[1733921516295,0.01166754,98331.0,98330.0,4.78170576]
[1733921517109,0.203384,98336.0,98330.0,4.78070576]
[1733921517469,0.203384,98336.0,98331.0,4.77110036]
[1733921517760,0.203392,98332.0,98330.0,0.001]
[1733921517983,0.18494259,98332.0,98331.0,4.78080133]
[1733921518192,0.18494259,98332.0,98331.0,4.79041942]
[1733921518514,0.20794259,98332.0,98331.0,4.79041942]
[1733921519137,0.002,98332.0,98331.0,4.79041942]
[1733921519837,0.205392,98332.0,98331.0,4.79041942]
[1733921520033,0.48445624,98332.0,98331.0,4.79041942]
[1733921520312,0.48445624,98332.0,98331.0,3.44371482]
[1733921520491,0.48445624,98332.0,98331.0,3.98241372]
[1733921521043,0.48445624,98332.0,98331.0,2.36635114]
[1733921521250,0.50745624,98332.0,98331.0,2.36735114]
[1733921521492,0.50549624,98332.0,98331.0,2.36735114]
[1733921521895,0.65749624,98332.0,98331.0,2.36735114]
[1733921522273,0.65549624,98332.0,98331.0,2.36735114]
[1733921522421,0.65649624,98332.0,98331.0,2.36635114]
[1733921522818,0.65649624,98332.0,98331.0,2.36735114]
[1733921523019,0.48185247,98332.0,98331.0,1.49199315]
[1733921523777,0.48185247,98332.0,98331.0,1.49099315]
[1733921523982,0.48285247,98332.0,98331.0,1.49099315]
[1733921524188,0.46762361,98332.0,98331.0,1.49099315]
[1733921524393,0.67101561,98332.0,98331.0,1.49099315]
[1733921524595,0.66901561,98332.0,98331.0,1.49099315]
[1733921524836,0.67401561,98332.0,98331.0,1.49099315]
[1733921525265,0.66901561,98332.0,98331.0,1.49099315]
[1733921525497,0.67401561,98332.0,98331.0,1.49099315]
[1733921525656,0.21032524,98332.0,98331.0,1.49099315]
[1733921525817,0.20632524,98332.0,98331.0,1.49099315]
[1733921526024,0.04439957,98332.0,98331.0,1.49099315]
[1733921526223,0.04939957,98332.0,98331.0,2.36640986]
[1733921526628,0.05039957,98332.0,98331.0,2.36640986]
[1733921527055,0.05039957,98332.0,98331.0,1.49099315]
[1733921527402,0.04939957,98332.0,98331.0,2.36645701]
[1733921527549,0.04539957,98332.0,98331.0,2.36645701]
[1733921528182,0.04539957,98332.0,98331.0,1.79885923]
[1733921528378,0.05039957,98332.0,98331.0,1.49099315]
[1733921528763,0.04539957,98332.0,98331.0,1.49099315]
[1733921528966,0.16009361,98342.0,98331.0,2.36643708]
[1733921529190,0.15,98341.0,98333.0,0.30784841]
[1733921529405,0.15,98341.0,98334.0,1.48137504]
[1733921529406,0.203382,98337.0,98334.0,1.48137504]
[1733921529606,0.203382,98337.0,98335.0,1.48137504]
[1733921529852,0.203382,98337.0,98336.0,1.48137504]
[1733921530260,0.203382,98337.0,98336.0,1.49119109]
[1733921530435,0.20348923,98337.0,98336.0,1.49119109]
[1733921530845,0.20548923,98337.0,98336.0,1.49119109]
[1733921531193,0.0031172,98340.0,98336.0,0.81783879]
[1733921531386,0.0031172,98340.0,98337.0,0.80802274]
[1733921531577,0.0031172,98340.0,98338.0,0.80802274]
[1733921531811,0.2064932,98340.0,98339.0,0.80802274]
[1733921532032,0.2064932,98340.0,98339.0,0.81783464]
[1733921532403,0.2104932,98340.0,98339.0,0.81783464]
[1733921532785,0.2064932,98340.0,98339.0,0.81783464]
[1733921532988,1.03329944,98340.0,98339.0,0.81783464]
[1733921533192,1.50668244,98340.0,98339.0,0.81783464]
[1733921533418,1.64085144,98340.0,98339.0,0.81783464]
[1733921533739,1.56759844,98340.0,98339.0,0.81783464]
[1733921534060,0.50743944,98340.0,98339.0,0.81783464]
[1733921534283,0.60743944,98340.0,98339.0,0.81794087]
[1733921534898,0.60752534,98340.0,98339.0,0.81794087]
[1733921535298,0.60352534,98340.0,98339.0,0.81794087]
[1733921535537,0.60352534,98340.0,98339.0,0.81894087]
[1733921535538,0.60852534,98340.0,98339.0,0.81894087]
[1733921535769,0.64012525,98340.0,98339.0,0.81894087]
[1733921535945,0.63512525,98340.0,98339.0,0.81794087]
[1733921536327,0.63712525,98340.0,98339.0,0.81794087]
[1733921537162,0.64312525,98340.0,98339.0,0.81894087]
[1733921538699,0.64312525,98340.0,98339.0,0.81925502]
[1733921539049,0.7392792,98340.0,98339.0,0.81925502]
[1733921539260,0.70812957,98340.0,98339.0,0.81925502]
[1733921539883,0.61509958,98340.0,98339.0,0.81925502]
[1733921540062,0.61309958,98340.0,98339.0,0.81925502]
[1733921540262,0.61309958,98340.0,98339.0,1.09303743]
[1733921540433,0.60709958,98340.0,98339.0,0.81825502]
[1733921540870,0.60709958,98340.0,98339.0,1.09309335]
[1733921540871,0.61309958,98340.0,98339.0,1.09309335]
[1733921541003,0.61309958,98340.0,98339.0,1.09209335]
[1733921541208,0.61309958,98340.0,98339.0,0.81825502]
[1733921541209,0.60709958,98340.0,98339.0,0.81825502]
[1733921541433,0.61309958,98340.0,98339.0,0.81825502]
[1733921541644,0.74120287,98340.0,98339.0,0.79993502]
[1733921541838,0.74120287,98340.0,98339.0,0.77100609]
[1733921542041,0.74320287,98340.0,98339.0,0.34631237]
[1733921542591,0.74120287,98340.0,98339.0,0.34631237]
[1733921542800,0.74320287,98340.0,98339.0,0.34631237]
[1733921544366,0.73720287,98340.0,98339.0,0.34631237]
[1733921544539,0.74120287,98340.0,98339.0,0.34631237]
[1733921544887,0.74320287,98340.0,98339.0,0.34631237]
[1733921545093,0.74320287,98340.0,98339.0,0.57479505]
[1733921545294,0.74120287,98340.0,98339.0,0.5531413]
[1733921545625,0.74220287,98340.0,98339.0,0.5531413]
[1733921546013,0.74220287,98340.0,98339.0,0.32465862]
[1733921546661,0.63709958,98340.0,98339.0,0.32465862]
[1733921547529,0.63709958,98340.0,98339.0,0.00946107]
[1733921547778,0.023,98339.0,98337.0,0.18282971]
[1733921547982,0.28692515,98338.0,98337.0,0.18282971]
[1733921548230,0.54770215,98338.0,98337.0,0.18282971]
[1733921548364,0.203382,98337.0,98336.0,0.00010723]
[1733921548565,0.49030715,98337.0,98336.0,0.00010723]
[1733921548828,0.64046115,98337.0,98336.0,0.00010723]
[1733921548983,0.64046115,98337.0,98336.0,0.22864437]
[1733921549182,0.64046115,98337.0,98336.0,0.0095756]
[1733921549424,0.64177115,98337.0,98336.0,0.00010723]
[1733921549803,0.64177115,98337.0,98336.0,0.0095756]
[1733921550034,0.74687444,98337.0,98336.0,0.0095756]
[1733921551014,0.75087444,98337.0,98336.0,0.0095756]
[1733921551732,0.75087444,98337.0,98336.0,0.75629584]
[1733921552143,0.75087444,98337.0,98336.0,0.0095756]
[1733921554035,0.64577115,98337.0,98336.0,0.0095756]
[1733921555376,0.66877115,98337.0,98336.0,0.0095756]
[1733921556169,0.66877115,98337.0,98336.0,0.00010723]
[1733921556389,0.66877115,98337.0,98336.0,0.00880552]
[1733921556799,0.66477115,98337.0,98336.0,0.00880552]
[1733921557161,0.67277115,98337.0,98336.0,0.14695608]
[1733921557359,0.67277115,98337.0,98336.0,0.14595608]
[1733921557360,0.76987444,98337.0,98336.0,0.14595608]
[1733921557711,0.76987444,98337.0,98336.0,0.14695608]
[1733921557859,0.173,98331.0,98323.0,0.22859287]
[1733921558060,0.1,98324.0,98323.0,0.22859287]
[1733921558274,0.15,98323.0,98320.0,0.22859287]
[1733921558486,0.15,98321.0,98320.0,0.22859287]
[1733921558696,0.28692515,98321.0,98320.0,0.22859287]
[1733921559037,0.28692515,98321.0,98320.0,0.30769287]
[1733921560333,0.28692515,98321.0,98320.0,0.64221646]
[1733921560554,0.28692515,98321.0,98320.0,0.41657562]
[1733921560754,0.28692515,98321.0,98320.0,0.41757562]
[1733921560919,0.28892515,98321.0,98320.0,0.41757562]
[1733921561121,0.28892515,98321.0,98320.0,0.41657562]
[1733921561367,0.29492515,98321.0,98320.0,0.0801]
[1733921561562,0.29492515,98321.0,98320.0,0.41756056]
[1733921561769,0.29492515,98321.0,98320.0,0.41756061]
[1733921561986,0.29492515,98321.0,98320.0,0.41756065]
[1733921563326,0.31552456,98321.0,98320.0,0.41756065]
[1733921564284,0.40071934,98321.0,98320.0,0.41756065]
[1733921565505,0.40071934,98321.0,98320.0,0.42577444]
[1733921566344,0.40071934,98321.0,98320.0,0.42574161]
[1733921568085,0.70886934,98321.0,98320.0,0.42574161]
[1733921568288,0.40071934,98321.0,98320.0,0.42574161]
[1733921568647,2.32531234,98321.0,98320.0,0.42574161]
[1733921568960,2.32531234,98321.0,98320.0,0.41752782]
[1733921570419,1.93689634,98321.0,98320.0,0.42623547]
[1733921570876,1.86594634,98321.0,98320.0,0.42623547]
[1733921571818,1.84522834,98321.0,98320.0,0.42623547]
[1733921572809,0.0130231,98323.0,98321.0,0.0827]
[1733921573011,0.0130231,98323.0,98322.0,0.33742782]
[1733921573230,0.15,98325.0,98322.0,1.17528567]
[1733921573444,0.23503118,98326.0,98323.0,1.08377664]
[1733921573445,0.03162718,98324.0,98323.0,1.08377664]
[1733921573647,0.03162718,98324.0,98323.0,1.09246159]
[1733921573863,0.03162718,98325.0,98323.0,1.09246159]
[1733921574067,0.03162718,98325.0,98324.0,0.33731175]
[1733921574293,0.03162718,98327.0,98324.0,0.33731175]
[1733921574522,0.203404,98326.0,98325.0,0.33731175]
[1733921574731,0.23503118,98326.0,98325.0,0.33731175]
[1733921574910,0.40504497,98326.0,98325.0,0.34599393]
[1733921575508,0.40504497,98326.0,98325.0,0.3460774]
[1733921576965,0.40804497,98326.0,98325.0,0.3460774]
[1733921578047,0.40804497,98326.0,98325.0,1.09274362]
[1733921578427,0.40804497,98326.0,98325.0,0.81854306]
[1733921578632,0.40804497,98326.0,98325.0,1.09284179]
[1733921579942,0.40504497,98326.0,98325.0,0.81854306]
[1733921580137,0.40504497,98326.0,98325.0,1.09305265]
[1733921580317,0.40604497,98326.0,98325.0,1.09305265]
[1733921580521,0.40604497,98326.0,98325.0,1.09307791]
[1733921580717,0.40504497,98326.0,98325.0,1.09307791]
[1733921580907,0.40504497,98326.0,98325.0,0.34620856]
[1733921581122,0.40504497,98326.0,98325.0,0.81976927]
[1733921581542,0.40504497,98326.0,98325.0,1.09407642]
[1733921582771,0.40504497,98326.0,98325.0,0.81976927]
[1733921583178,0.40504497,98326.0,98325.0,0.81983215]
[1733921584001,0.40504497,98326.0,98325.0,0.81883215]
[1733921584203,0.40504497,98326.0,98325.0,0.89913215]
[1733921584406,0.05264097,98326.0,98325.0,0.89913215]
[1733921584877,0.05664097,98326.0,98325.0,0.89913215]
[1733921587849,0.203404,98326.0,98325.0,0.42657613]
[1733921588693,0.22425666,98326.0,98325.0,0.42657613]
[1733921590651,0.28867285,98326.0,98325.0,0.42657613]
[1733921590986,3.25990709,98326.0,98325.0,0.42657613]
[1733921591342,3.25990709,98326.0,98325.0,0.41789395]
[1733921591744,2.78698709,98326.0,98325.0,0.41789395]
[1733921591972,2.78698709,98326.0,98325.0,0.42657582]
[1733921592175,2.50497009,98326.0,98325.0,0.42657582]
[1733921592673,2.65497009,98326.0,98325.0,0.42657582]
[1733921593527,2.65797009,98326.0,98325.0,0.42657582]
[1733921593719,2.65497009,98326.0,98325.0,0.42657582]
[1733921594068,2.65797009,98326.0,98325.0,0.42657582]
[1733921596808,2.65797009,98326.0,98325.0,0.42659412]
[1733921599626,2.02381009,98326.0,98325.0,0.42659412]
[1733921599827,1.55300209,98326.0,98325.0,0.42659412]
[1733921600004,1.13912909,98326.0,98325.0,0.41791225]
[1733921600212,1.13912909,98326.0,98325.0,0.42659457]
[1733921601003,1.13912909,98326.0,98325.0,0.65527466]
[1733921601253,1.16212909,98326.0,98325.0,0.52924223]
[1733921601584,1.16212909,98326.0,98325.0,0.00868232]
[1733921602124,0.476409,98324.0,98323.0,0.09147326]
[1733921602280,0.476409,98324.0,98322.0,0.09147326]
[1733921602281,0.173,98323.0,98322.0,0.09147326]
[1733921602497,1.66884986,98323.0,98322.0,0.09147326]
[1733921602697,0.173,98321.0,98320.0,0.0001716]
[1733921602911,1.97524057,98321.0,98320.0,0.0001716]
[1733921603113,1.40011357,98321.0,98320.0,0.0001716]
[1733921604235,1.40511357,98321.0,98320.0,0.0001716]
[1733921604434,1.51021686,98321.0,98320.0,0.0001716]
[1733921604665,0.406834,98320.0,98317.0,0.08776518]
[1733921604839,0.203421,98318.0,98317.0,0.08776518]
[1733921605060,0.90455557,98318.0,98317.0,0.08776518]
[1733921605281,0.80707457,98318.0,98317.0,0.08776518]
[1733921605643,0.49040257,98318.0,98317.0,0.08776518]
[1733921606404,0.49440257,98318.0,98317.0,0.16386518]
[1733921607014,1.54907731,98318.0,98317.0,0.16386518]
[1733921607781,1.55007731,98318.0,98317.0,0.16386518]
[1733921607998,1.6551806,98318.0,98317.0,0.16386518]
[1733921608400,1.6551806,98318.0,98317.0,0.21366518]
[1733921608623,1.55007731,98318.0,98317.0,0.21366518]
[1733921609036,1.51072731,98318.0,98317.0,0.21366518]
[1733921609791,1.51072731,98318.0,98317.0,0.1259]
[1733921610006,1.51072731,98318.0,98317.0,0.0761]
[1733921610835,1.51072731,98318.0,98317.0,0.06110539]
[1733921611281,0.203436,98311.0,98309.0,0.1781008]
[1733921611480,0.203456,98301.0,98298.0,0.05553937]
[1733921611651,0.18165633,98300.0,98298.0,0.05553937]
[1733921611854,0.23511633,98299.0,98298.0,0.05553937]
[1733921612318,0.23338096,98299.0,98298.0,0.05553937]
[1733921612730,0.23338096,98299.0,98298.0,0.05609448]
[1733921612885,0.23338096,98299.0,98298.0,0.05909448]
[1733921613236,0.23338096,98299.0,98298.0,0.04555511]
[1733921613237,0.31241006,98299.0,98298.0,0.04555511]
[1733921613446,0.23338096,98299.0,98298.0,0.04555511]
[1733921613637,0.23338096,98299.0,98298.0,0.04855511]
[1733921613845,0.24581382,98299.0,98298.0,0.04555511]
[1733921614250,0.24581382,98299.0,98298.0,0.12475511]
[1733921614658,0.24581382,98299.0,98298.0,0.12175511]
[1733921614862,0.24981382,98299.0,98298.0,0.12175511]
[1733921615427,0.24581382,98299.0,98298.0,0.12175511]
[1733921615621,0.26777744,98299.0,98298.0,0.12175511]
[1733921615824,0.25781382,98299.0,98298.0,0.12275511]
[1733921616025,0.24881382,98299.0,98298.0,0.12175511]
[1733921616453,0.25581382,98299.0,98298.0,0.12275511]
[1733921616950,0.25281382,98299.0,98298.0,0.12275511]
[1733921617151,0.25581382,98299.0,98298.0,0.12275511]
[1733921617512,0.275975,98299.0,98298.0,0.12275511]
[1733921622480,0.425975,98299.0,98298.0,0.12275511]
[1733921624746,0.07425037,98299.0,98298.0,0.12275511]
[1733921625281,0.04259404,98299.0,98298.0,0.12275511]
[1733921625484,0.04259404,98299.0,98298.0,0.129643]
[1733921625887,0.03959404,98299.0,98298.0,0.129643]
[1733921626300,0.04159404,98299.0,98298.0,0.129643]
[1733921626528,0.03459404,98299.0,98298.0,0.128643]
[1733921626889,0.03659404,98299.0,98298.0,0.128643]
[1733921627589,0.03459404,98299.0,98298.0,0.21995123]
[1733921627982,0.03359404,98299.0,98298.0,0.21995123]
[1733921628228,0.01343286,98299.0,98298.0,0.21995123]
[1733921628851,0.01343286,98299.0,98298.0,0.128643]
[1733921629774,0.01243286,98299.0,98298.0,0.128643]
[1733921630196,8.59e-05,98300.0,98299.0,0.0762]
[1733921630624,8.59e-05,98300.0,98299.0,0.0830869]
[1733921631261,8.59e-05,98300.0,98299.0,0.1313869]
[1733921631467,8.59e-05,98300.0,98299.0,0.60546807]
[1733921631675,8.59e-05,98300.0,98299.0,0.46950572]
[1733921631882,0.01217735,98300.0,98299.0,0.6521877]
[1733921632085,8.59e-05,98300.0,98299.0,0.69885311]
[1733921632506,8.59e-05,98300.0,98299.0,0.47052606]
[1733921634816,0.01262156,98300.0,98299.0,0.47052606]
[1733921635238,8.59e-05,98300.0,98299.0,0.47052606]
[1733921636692,0.01259616,98300.0,98299.0,0.47052606]
[1733921638263,0.01259616,98300.0,98299.0,0.46952606]
[1733921638616,0.01259616,98300.0,98299.0,0.47052606]
[1733921639048,0.01259616,98300.0,98299.0,0.46952606]
[1733921639592,0.01259616,98300.0,98299.0,0.46852606]
[1733921639801,0.01259616,98300.0,98299.0,0.47252606]
[1733921640002,0.01259616,98300.0,98299.0,0.0108869]
[1733921640003,0.21605416,98300.0,98299.0,0.0108869]
[1733921640225,0.28225334,98300.0,98299.0,0.0108869]
[1733921640444,0.24767651,98300.0,98299.0,0.0138869]
[1733921640856,0.24767651,98300.0,98299.0,0.007]
[1733921641055,0.24767651,98300.0,98299.0,0.004]
[1733921641185,0.24867651,98300.0,98298.0,0.00055511]
[1733921641384,0.03162235,98299.0,98298.0,0.00055511]
[1733921643029,0.03362235,98299.0,98298.0,0.00055511]
[1733921644263,0.03462235,98299.0,98298.0,0.00950997]
[1733921644493,0.03162235,98299.0,98298.0,0.00950997]
[1733921645723,0.01259616,98300.0,98298.0,0.08840997]
[1733921645925,0.01259616,98300.0,98299.0,0.0914004]
[1733921646135,0.01259616,98300.0,98299.0,0.13707935]
[1733921646339,0.01259616,98300.0,98299.0,0.14603282]
[1733921646590,0.01259616,98300.0,98299.0,0.48342823]
[1733921647245,0.01259616,98300.0,98299.0,0.34634888]
[1733921647600,0.01259616,98300.0,98299.0,0.39394888]
[1733921647822,0.01259616,98300.0,98299.0,0.39494888]
[1733921648118,0.01259616,98300.0,98299.0,0.47524888]
[1733921648341,0.01259616,98300.0,98299.0,0.70371447]
[1733921648561,0.01259616,98300.0,98299.0,0.47524888]
[1733921649247,0.01259616,98300.0,98299.0,0.47424888]
[1733921649465,0.01259616,98300.0,98299.0,0.47524888]
[1733921649914,0.01259616,98300.0,98299.0,0.62524888]
[1733921650163,0.15,98325.0,98299.0,0.54694888]
[1733921650440,0.03162079,98324.0,98314.0,0.0812]
[1733921650982,0.03162079,98324.0,98315.0,0.0913943]
[1733921651240,0.03162079,98324.0,98315.0,0.10032331]
[1733921651746,0.03162079,98324.0,98316.0,0.0469]
[1733921652244,0.03162079,98324.0,98317.0,0.00892624]
[1733921652508,0.03162079,98324.0,98318.0,0.0913943]
[1733921653016,0.03162079,98324.0,98318.0,0.10031916]
[1733921653278,0.04462079,98324.0,98318.0,0.10031916]
[1733921653515,0.03162079,98323.0,98318.0,0.10031916]
[1733921654007,0.03562079,98324.0,98318.0,0.10031916]
[1733921654243,0.03162079,98323.0,98318.0,0.10031916]
[1733921654448,0.03162079,98323.0,98318.0,0.00892486]
[1733921654833,0.03262079,98323.0,98318.0,0.00892486]
[1733921655036,0.03162079,98322.0,98320.0,0.0913943]
[1733921655345,0.001,98323.0,98321.0,0.10031248]
[1733921656103,0.18296199,98325.0,98321.0,0.10031248]
[1733921656318,0.18296199,98325.0,98321.0,0.00891818]
[1733921656682,0.15,98323.0,98321.0,0.00891818]
[1733921656872,0.153,98323.0,98321.0,0.00891818]
[1733921657074,0.15,98323.0,98320.0,0.0913943]
[1733921657312,0.15,98323.0,98317.0,0.13709145]
[1733921657313,0.15,98323.0,98322.0,0.00925134]
[1733921657517,0.15,98323.0,98319.0,0.0913943]
[1733921658039,0.151,98323.0,98320.0,0.00925411]
[1733921658239,0.15,98323.0,98320.0,0.00925411]
[1733921658707,0.151,98323.0,98320.0,0.00925411]
[1733921659461,0.151,98323.0,98318.0,0.0913943]
[1733921659661,0.151,98323.0,98321.0,0.00925272]
[1733921659867,0.151,98323.0,98318.0,0.0913943]
[1733921660088,0.151,98323.0,98322.0,0.00925134]
[1733921660243,0.15,98323.0,98318.0,0.0913943]
[1733921660514,0.15,98323.0,98316.0,0.18399145]
[1733921660515,0.001,98323.0,98319.0,0.10064979]
[1733921660904,0.01257357,98330.0,98319.0,0.00925549]
[1733921661110,0.01257357,98330.0,98323.0,0.09128002]
[1733921661284,0.01257357,98330.0,98324.0,0.0775]
[1733921661642,0.01257357,98330.0,98324.0,0.08705871]
[1733921662304,0.01457357,98330.0,98324.0,0.08705871]
[1733921663450,0.01257357,98330.0,98324.0,0.08705871]
[1733921664083,0.01457357,98330.0,98324.0,0.08705871]
[1733921674671,0.01457357,98330.0,98326.0,0.0828]
[1733921675014,0.01457357,98330.0,98328.0,0.0801]
[1733921675519,0.01257357,98330.0,98329.0,0.00954859]
[1733921675757,0.01257357,98330.0,98329.0,0.08574859]
[1733921676417,0.01272632,98330.0,98329.0,0.08574859]
[1733921676825,0.01272632,98330.0,98329.0,0.091438]
[1733921677622,0.01272632,98330.0,98329.0,0.094438]
[1733921678190,0.01272632,98330.0,98329.0,0.096438]
[1733921678490,0.01272632,98330.0,98329.0,0.093438]
[1733921678901,0.01272632,98330.0,98329.0,0.094438]
[1733921679101,0.01272632,98330.0,98329.0,0.097438]
[1733921679725,0.01272632,98330.0,98329.0,0.094438]
[1733921679933,0.01272632,98330.0,98329.0,0.097438]
[1733921680139,0.01272632,98330.0,98329.0,0.094438]
[1733921680578,0.01272632,98330.0,98329.0,0.097438]
[1733921680785,0.01272632,98330.0,98329.0,0.094438]
[1733921681300,0.01272632,98330.0,98329.0,0.098438]
[1733921682573,0.01272632,98330.0,98329.0,0.1896511]
[1733921682818,0.01272632,98330.0,98329.0,0.098438]
[1733921683064,0.01272632,98330.0,98329.0,0.18965106]
[1733921683308,0.01272632,98330.0,98329.0,0.33665106]
[1733921683509,0.01272632,98330.0,98329.0,0.33264647]
[1733921683712,0.01272632,98330.0,98329.0,0.245438]
[1733921684046,0.01272632,98330.0,98329.0,0.241438]
[1733921684252,0.01272632,98330.0,98329.0,0.33864401]
[1733921684549,0.01272632,98330.0,98329.0,0.34164401]
[1733921684772,0.01272632,98330.0,98329.0,0.58709768]
[1733921684987,0.01272632,98330.0,98329.0,0.58409768]
[1733921685204,8.59e-05,98340.0,98331.0,0.15]
[1733921685414,8.59e-05,98340.0,98334.0,0.09119336]
[1733921685656,0.01517665,98340.0,98335.0,0.0825]
[1733921685832,8.59e-05,98340.0,98335.0,0.09771344]
[1733921687094,8.59e-05,98340.0,98339.0,0.09119336]
[1733921687300,8.59e-05,98340.0,98339.0,0.95489103]
[1733921687512,8.59e-05,98340.0,98339.0,0.78766946]
[1733921687721,8.59e-05,98340.0,98339.0,1.01569505]
[1733921688189,8.59e-05,98340.0,98339.0,0.78766946]
[1733921688810,8.59e-05,98340.0,98339.0,0.78866946]
[1733921689239,8.59e-05,98340.0,98339.0,0.78766946]
[1733921689448,0.01516901,98340.0,98339.0,0.78766946]
[1733921689656,8.59e-05,98340.0,98339.0,0.79066946]
[1733921690090,8.59e-05,98340.0,98339.0,0.58829146]
[1733921690327,8.59e-05,98340.0,98339.0,0.43829146]
[1733921690571,8.59e-05,98340.0,98339.0,0.58349174]
[1733921690855,8.59e-05,98340.0,98339.0,0.58429146]
[1733921691018,0.0010859,98340.0,98339.0,0.59029146]